lending/lending_fUSD_20240120
["ID","MTS","AMOUNT","RATE_DAILY","PERIOD"]
[312259612,1705716644903,-500.0,0.00024657,2]
[312259613,1705716644913,-500.0,0.00024657,2]
[312259614,1705716644922,-11.15678991,0.00024657,2]
[312259615,1705716644934,-488.84321009,0.00024657,2]
[312259616,1705716644943,-500.0,0.00024657,2]
[312259617,1705716644952,-500.0,0.00024657,2]
[312259618,1705716644961,-26.17582159,0.00024657,2]
[312259619,1705716644973,-524.28678313,0.00024657,2]
[312259637,1705716646041,-31.78739528,0.00024657,2]
[312259638,1705716646051,-531.79879215,0.00024657,2]
[312259639,1705716646061,-47.31602047,0.00024657,2]
[312259640,1705716646073,-452.68397953,0.00024657,2]
[312259641,1705716646083,-508.90343677,0.00024657,2]
[312259642,1705716646094,-500.0,0.00024657,2]
[312259643,1705716646104,-500.0,0.00024657,2]
[312259644,1705716646113,-500.0,0.00024657,2]
[312259645,1705716646123,-500.0,0.00024657,2]
[312259646,1705716646132,-500.0,0.00024657,2]
[312259647,1705716646141,-500.0,0.00024657,2]
[312259648,1705716646151,-500.0,0.00024657,2]
[312259649,1705716646161,-515.01110982,0.00024657,2]
[312259650,1705716646173,-500.0,0.00024657,2]
[312259651,1705716646184,-500.0,0.00024657,2]
[312259652,1705716646195,-503.27571148,0.00024657,2]
[312259653,1705716646205,-500.0,0.00024657,2]
[312259654,1705716646216,-518.97861178,0.00024657,2]
[312259655,1705716646226,-381.84630996,0.00024657,2]
[312259656,1705716646235,-500.0,0.00024657,2]
[312259657,1705716646246,-500.0,0.00024657,2]
[312259658,1705716646255,-509.53942885,0.00024657,2]
[312259659,1705716646265,-500.0,0.00024657,2]
[312259660,1705716646274,-500.0,0.00024657,2]
[312259661,1705716646282,-500.0,0.00024657,2]
[312259662,1705716646291,-500.0,0.00024657,2]
[312259663,1705716646301,-584.93436855,0.00024657,2]
[312259664,1705716646311,-516.91985177,0.00024657,2]
[312259665,1705716646320,-500.0,0.00024657,2]
[312259666,1705716646329,-500.0,0.00024657,2]
[312259667,1705716646338,-431.39993701,0.00024657,2]
[312259668,1705716646347,-518.47914812,0.00024657,2]
[312259669,1705716646356,-500.0,0.00024657,2]
[312259670,1705716646365,-500.0,0.00024657,2]
[312259671,1705716646374,-500.0,0.00024657,2]
[312259672,1705716646383,-219.11498694,0.00024657,2]
[312259673,1705716646392,-500.0,0.00024657,2]
[312259674,1705716646401,-500.0,0.00024657,2]
[312259675,1705716646411,-98.1769329,0.00024657,2]
[312259676,1705716646424,-401.8230671,0.00024657,2]
[312259677,1705716646433,-500.0,0.00024657,2]
[312259678,1705716646442,-500.0,0.00024657,2]
[312259679,1705716646451,-500.0,0.00024657,2]
[312259680,1705716646460,-460.98410954,0.00024657,2]
[312259681,1705716646473,-39.01589046,0.00024657,2]
[312259682,1705716646483,-500.0,0.00024657,2]
[312259683,1705716646492,-395.73386183,0.00024657,2]
[312259684,1705716646503,-104.26613817,0.00024657,2]
[312259685,1705716646512,-500.0,0.00024657,2]
[312259686,1705716646521,-500.0,0.00024657,2]
[312259687,1705716646529,-500.0,0.00024657,2]
[312259688,1705716646538,-500.0,0.00024657,2]
[312259689,1705716646548,-549.48813474,0.00024657,2]
[312259690,1705716646557,-500.0,0.00024657,2]
[312259691,1705716646566,-500.0,0.00024657,2]
[312259692,1705716646575,-500.0,0.00024657,2]
[312259693,1705716646584,-500.0,0.00024657,2]
[312259694,1705716646594,-363.07511217,0.00024657,2]
[312259695,1705716646603,-500.0,0.00024657,2]
[312259696,1705716646614,-500.0,0.00024657,2]
[312259697,1705716646623,-500.0,0.00024657,2]
[312259698,1705716646633,-500.0,0.00024657,2]
[312259699,1705716646642,-500.0,0.00024657,2]
[312259700,1705716646652,-500.0,0.00024657,2]
[312259701,1705716646661,-500.0,0.00024657,2]
[312259702,1705716646670,-500.0,0.00024657,2]
[312259703,1705716646679,-500.0,0.00024657,2]
[312259704,1705716646689,-1000.0,0.00024657,2]
[312259705,1705716646698,-500.0,0.00024657,2]
[312259706,1705716646707,-500.0,0.00024657,2]
[312259707,1705716646719,-500.0,0.00024657,2]
[312259708,1705716646728,-500.0,0.00024657,2]
[312259709,1705716646738,-559.34746514,0.00024657,2]
[312259710,1705716646747,-500.0,0.00024657,2]
[312259711,1705716646756,-500.0,0.00024657,2]
[312259712,1705716646765,-500.0,0.00024657,2]
[312259713,1705716646774,-500.0,0.00024657,2]
[312259714,1705716646784,-500.0,0.00024657,2]
[312259715,1705716646794,-500.0,0.00024657,2]
[312259716,1705716646804,-500.0,0.00024657,2]
[312259717,1705716646813,-456.65631706,0.00024657,2]
[312259718,1705716646823,-886.43,0.00024657,2]
[312259719,1705716646833,-500.0,0.00024657,2]
[312259720,1705716646842,-886.43,0.00024657,2]
[312259721,1705716646851,-500.0,0.00024657,2]
[312259722,1705716646861,-500.0,0.00024657,2]
[312259723,1705716646869,-500.0,0.00024657,2]
[312259724,1705716646878,-500.0,0.00024657,2]
[312259725,1705716646888,-500.0,0.00024657,2]
[312259726,1705716646897,-500.0,0.00024657,2]
[312259727,1705716646907,-500.0,0.00024657,2]
[312259728,1705716646916,-500.0,0.00024657,2]
[312259729,1705716646925,-500.0,0.00024657,2]
[312259730,1705716646934,-606.91899159,0.00024657,2]
[312259731,1705716646944,-500.0,0.00024657,2]
[312259732,1705716646953,-500.0,0.00024657,2]
[312259733,1705716646962,-500.0,0.00024657,2]
[312259734,1705716646972,-500.0,0.00024657,2]
[312259735,1705716646981,-500.0,0.00024657,2]
[312259736,1705716646990,-500.0,0.00024657,2]
[312259737,1705716646999,-500.0,0.00024657,2]
[312259738,1705716647008,-500.0,0.00024657,2]
[312259739,1705716647017,-500.0,0.00024657,2]
[312259740,1705716647026,-500.0,0.00024657,2]
[312259741,1705716647036,-500.0,0.00024657,2]
[312259742,1705716647045,-500.0,0.00024657,2]
[312259743,1705716647054,-225.99981348,0.00024657,2]
[312259744,1705716647068,-266.78196406,0.00024657,2]
[312259745,1705716647078,-500.0,0.00024657,2]
[312259746,1705716647088,-500.0,0.00024657,2]
[312259747,1705716647097,-500.0,0.00024657,2]
[312259748,1705716647106,-225.23605256,0.00024657,2]
[312259749,1705716647118,-274.76394744,0.00024657,2]
[312259750,1705716647128,-500.0,0.00024657,2]
[312259751,1705716647138,-500.0,0.00024657,2]
[312259752,1705716647148,-500.0,0.00024657,2]
[312259753,1705716647157,-500.0,0.00024657,2]
[312259754,1705716647168,-500.0,0.00024657,2]
[312259755,1705716647178,-26.26139463,0.00024657,2]
[312259756,1705716647423,-502.73026536,0.00024657,2]
[312259757,1705716647435,-18.47167353,0.00024657,2]
[312259758,1705716647444,-514.65321233,0.00024657,2]
[312259759,1705716647453,-151.13468273,0.00024657,2]
[312259760,1705716647470,-348.86531727,0.00024657,2]
[312259761,1705716647479,-40.08552546,0.00024657,2]
[312259762,1705716647491,-459.91447454,0.00024657,2]
[312259763,1705716647500,-500.0,0.00024657,2]
[312259764,1705716647509,-500.0,0.00024657,2]
[312259765,1705716647518,-421.08972196,0.00024657,2]
[312259766,1705716650019,907.72,0.00031,120]
[312259767,1705716656440,156.43871049,0.00022,2]
[312259774,1705716889978,3031.35,0.00031,120]
[312259775,1705716984828,182.0,0.00020575,2]
[312259776,1705716991886,5000.0,0.00022,2]
[312259778,1705717047913,5000.0,0.00022,2]
[312259779,1705717051461,5000.0,0.00022,2]
[312259780,1705717052107,5000.0,0.00022,2]
[312259781,1705717052411,5000.0,0.00022,2]
[312259782,1705717055714,5000.0,0.00022,2]
[312259783,1705717056146,832.75046503,0.00022,2]
[312259784,1705717190302,166.37,0.00018413,2]
[312259785,1705717203552,150.0,0.00018413,2]
[312259786,1705717203782,150.0,0.00018413,2]
[312259787,1705717204035,296.75422393,0.00018413,2]
[312259788,1705717236426,155.23812296,0.00017249,2]
[312259789,1705717252409,225.39380129,0.00017249,2]
[312259869,1705717832389,-300.0,0.00019564,2]
[312259870,1705717832402,-224.19831016,0.00019564,2]
[312259871,1705717832411,-370.58249198,0.00019565,2]
[312259872,1705717832421,-448.74834803,0.00019578,2]
[312259873,1705717832431,-543.52,0.00020628,2]
[312259874,1705717832441,-155.40516054,0.00021897,2]
[312259875,1705717832450,-4947.838,0.00021898,2]
[312259876,1705717832460,-150.0,0.00021997,2]
[312259877,1705717832469,-192.20021267,0.00021998,2]
[312259878,1705717832479,-248.27893998,0.00021998,2]
[312259879,1705717832492,-1073.40205836,0.00021998,2]
[312259880,1705717832503,-156.88873002,0.00021998,2]
[312259881,1705717832513,-487.83048163,0.00021998,2]
[312259882,1705717832522,-264.13618051,0.00021998,2]
[312259883,1705717832533,-573.65417839,0.00021998,2]
[312259884,1705717832545,-564.28815814,0.00021998,2]
[312259885,1705717832575,-4148.03766942,0.00021998,2]
[312259886,1705717832585,-1086.64698753,0.00021998,2]
[312259888,1705717832597,-183.01119565,0.00021998,2]
[312259890,1705717832606,-447.36754736,0.00021999,2]
[312259892,1705717832618,-2734.0352509,0.00021999,2]
[312259894,1705717832627,-2292.21474165,0.00022,2]
[312259896,1705717832637,-5000.0,0.00022,2]
[312259898,1705717832646,-3213.11828165,0.00022,2]
[312259901,1705717832662,-346.80171835,0.00022,2]
[312259903,1705717832675,-69.43473362,0.00022,3]
[312259905,1705717832687,-473.60372956,0.00022,3]
[312259907,1705717832698,-686.85238588,0.00022,3]
[312259910,1705717832710,-20.10915094,0.00022,3]
[312259912,1705717832719,-718.52,0.000223,2]
[312259913,1705717832729,-1577.06,0.00022307,2]
[312259915,1705717832739,-155.98,0.00022469,2]
[312259917,1705717832749,-250.0,0.00022531,2]
[312259919,1705717832759,-21365.08,0.00022537,2]
[312259921,1705717832768,-800.0,0.00022548,2]
[312259923,1705717832777,-177.48,0.00022548,2]
[312259925,1705717832787,-280.92,0.00022618,2]
[312259927,1705717832796,-1073.32,0.00022643,2]
[312259929,1705717832805,-1129.65554664,0.00022853,2]
[312259931,1705717832814,-155.98,0.0002286,2]
[312259933,1705717832823,-200.0,0.00022863,2]
[312259935,1705717832832,-159.46,0.00022869,2]
[312259937,1705717832842,-543.52,0.00022892,2]
[312259939,1705717832851,-710.39,0.00023,2]
[312259941,1705717832860,-714.41,0.00023,2]
[312259943,1705717832869,-169.09,0.000232,2]
[312259945,1705717832878,-177.48,0.00023224,2]
[312259947,1705717832887,-723.14,0.00023245,2]
[312259949,1705717832896,-155.98,0.0002325,2]
[312259951,1705717832905,-734.28,0.00023312,2]
[312259953,1705717832915,-709.59,0.00023321,2]
[312259954,1705717832924,-726.45,0.00023337,2]
[312259955,1705717832934,-731.41,0.00023364,2]
[312259956,1705717832943,-716.07,0.00023413,2]
[312259957,1705717832952,-722.57,0.00023499,2]
[312259958,1705717832963,-156.54769739,0.000235,2]
[312259959,1705717832972,-158.58,0.00023509,2]
[312259960,1705717832981,-155.98,0.0002364,2]
[312259961,1705717832991,-250.0,0.000237,2]
[312259962,1705717833000,-176.33,0.00023785,2]
[312259963,1705717833009,-158.58,0.00023791,2]
[312259964,1705717833018,-177.48,0.00023901,2]
[312259965,1705717833027,-155.40516054,0.00023912,2]
[312259966,1705717833037,-711.78,0.00023932,2]
[312259967,1705717833046,-160.89,0.00023979,2]
[312259968,1705717833055,-1300.0,0.00024,3]
[312259969,1705717833065,-158.58,0.00024073,2]
[312259970,1705717833073,-15526.47888128,0.00024166,2]
[312259971,1705717833085,-1021.05941558,0.00024166,2]
[312259992,1705717838239,-55500.94311495,0.00024166,2]
[312259999,1705717838298,-1008.43163591,0.00024166,2]
[312260015,1705717838474,-727.80525622,0.00024166,2]
[312260045,1705717840774,-2831.63636363,0.00024166,2]
[312260047,1705717840786,-820.48472415,0.00024166,2]
[312260049,1705717840805,-8912.03390444,0.00024166,2]
[312260075,1705717841439,-400.30111,0.00024166,2]
[312260076,1705717841497,-396.26078023,0.00024166,2]
[312260078,1705717843338,-7104.32764006,0.00024166,2]
[312260079,1705717843351,-4050.01805608,0.00024166,2]
[312260080,1705717843363,-1707.12749173,0.00024166,2]
[312260081,1705717843375,-11156.10472775,0.00024166,2]
[312260082,1705717843405,-35774.82973069,0.00024166,2]
[312260083,1705717843417,-510.38064613,0.00024166,2]
[312260084,1705717843429,-34832.90890594,0.00024166,2]
[312260085,1705717843470,-5676.52184913,0.00024166,2]
[312260086,1705717843482,-2988.67400205,0.00024166,2]
[312260087,1705717843494,-353.659,0.00024166,2]
[312260088,1705717843507,-2063.75470879,0.00024166,2]
[312260089,1705717843531,-338.19630947,0.00024166,2]
[312260097,1705717846463,-343.37383018,0.00024165,2]
[312260098,1705717846474,-156.62616982,0.00024166,2]
[312260140,1705719031355,-581.87,0.00020617,2]
[312260142,1705719031365,-107.43241408,0.00020732,2]
[312260144,1705719031413,-310.8558758,0.00020732,2]
[312260145,1705719031422,-252.4941242,0.00020733,2]
[312260146,1705719031434,-562.43544538,0.00020733,2]
[312260147,1705719031445,-1100.9629434,0.00020733,2]
[312260148,1705719031455,-0.36871639,0.00020733,2]
[312260149,1705719031467,-298.69050621,0.00020733,2]
[312260150,1705719031482,-1513.70101522,0.00020733,2]
[312260151,1705719031491,-370.58249198,0.00020734,2]
[312260152,1705719031500,-204.48375983,0.00020734,2]
[312260153,1705719031509,-619.47454761,0.000219,2]
[312260154,1705719031520,-131.80560845,0.000219,2]
[312260155,1705719031529,-150.0,0.00021973,2]
[312260156,1705719031538,-84.55682666,0.00022446,2]
[312260157,1705719031549,-3937.39106229,0.00022446,2]
[312260158,1705719031561,-978.05211105,0.00022446,2]
[312260159,1705719031570,-254.72722991,0.00022447,2]
[312260160,1705719031581,-525.01690073,0.00022447,2]
[312260161,1705719031612,-792.18586936,0.00022447,2]
[312260162,1705719031622,-2000.0,0.00022459,2]
[312260163,1705719031631,-498.65,0.00022463,2]
[312260164,1705719031640,-1285.38,0.00022465,2]
[312260165,1705719031649,-2387.3,0.00022483,2]
[312260166,1705719031659,-287.55,0.00022486,2]
[312260167,1705719031669,-200.0,0.00022492,2]
[312260168,1705719031678,-250.0,0.00022495,2]
[312260169,1705719031688,-178.68822708,0.00022497,2]
[312260170,1705719031698,-2735.29854146,0.00022514,2]
[312260172,1705719031727,-91.87145854,0.00022514,2]
[312260174,1705719031736,-250.0,0.00022558,2]
[312260176,1705719031746,-160.89,0.0002267,2]
[312260178,1705719031756,-155.48,0.00022722,2]
[312260180,1705719031765,-459.03898272,0.00022722,2]
[312260183,1705719031777,-290.96101728,0.00022722,2]
[312260186,1705719031786,-1701.98029588,0.00022725,2]
[312260189,1705719031798,-443.86465523,0.00022725,2]
[312260191,1705719031807,-155.28572473,0.00022725,2]
[312260192,1705719031816,-145.49130616,0.00022725,2]
[312260207,1705719037399,-4459.38620389,0.00022,2]
[312260208,1705719037411,-540.61379611,0.00022,2]
[312260209,1705719037421,-9.84531942,0.00022725,2]
[312260210,1705719037430,-502.91203694,0.00022725,2]
[312260211,1705719037440,-155.4005176,0.00022725,2]
[312260212,1705719037449,-155.32436821,0.00022725,2]
[312260213,1705719037461,-159.26326165,0.00022725,2]
[312260214,1705719037471,-196.72385676,0.00022725,2]
[312260215,1705719037480,-155.4373976,0.00022725,2]
[312260216,1705719037489,-1109.85604543,0.00022725,2]
[312260229,1705719037914,-26.58524248,0.00022725,2]
[312260231,1705719037924,-1714.09304332,0.00022725,2]
[312260233,1705719037934,-101.1617142,0.00022726,2]
[312260237,1705719037949,-177.56859039,0.00022726,2]
[312260240,1705719037959,-353.73341001,0.00022727,2]
[312260242,1705719037975,-626.62065293,0.00022727,2]
[312260245,1705719037986,-2150.16565339,0.00022727,2]
[312260544,1705719041085,-843.56738472,0.00022727,2]
[312260546,1705719041097,-6285.25396417,0.00022727,2]
[312260549,1705719041200,-713.6500075,0.00022727,2]
[312260550,1705719041212,-6809.0625918,0.00022727,2]
[312260551,1705719041258,-793.57873986,0.00022727,2]
[312260552,1705719041271,-5314.36759562,0.00022727,2]
[312260553,1705719041281,-640.0,0.0002274,2]
[312260554,1705719041290,-200.0,0.00022761,2]
[312260555,1705719041301,-150.27,0.00022785,2]
[312260556,1705719041310,-150.0,0.00022795,2]
[312260557,1705719041320,-581.87,0.00022881,2]
[312260558,1705719041330,-500.0,0.00023014,2]
[312260559,1705719041341,-157.53,0.00023047,2]
[312260560,1705719041351,-155.48,0.00023116,2]
[312260561,1705719041360,-150.27,0.00023176,2]
[312260562,1705719041370,-360.0,0.00023182,2]
[312260563,1705719041379,-155.40238564,0.00023274,2]
[312260564,1705719041389,-162.70607813,0.00023274,2]
[312260565,1705719041399,-261.66106339,0.00023274,2]
[312260566,1705719041409,-221.05711237,0.00023275,2]
[312260567,1705719041419,-415.10389832,0.00023275,2]
[312260568,1705719041429,-152.29,0.00023449,2]
[312260569,1705719041438,-155.48,0.00023511,2]
[312260570,1705719041448,-160.89,0.00023523,2]
[312260571,1705719041457,-150.27,0.00023567,2]
[312260572,1705719041467,-150.1,0.000237,3]
[312260573,1705719041477,-250.0,0.000237,2]
[312260574,1705719041487,-152.29,0.00023705,2]
[312260575,1705719041498,-162.07,0.00023801,2]
[312260576,1705719041509,-817.04,0.00023839,2]
[312260577,1705719041519,-408.64,0.00023839,2]
[312260578,1705719041528,-418.5,0.00023839,2]
[312260579,1705719041538,-408.64,0.00023839,2]
[312260580,1705719041549,-427.04,0.00023839,2]
[312260581,1705719041558,-402.83,0.00023839,2]
[312260582,1705719041567,-418.5,0.00023839,2]
[312260583,1705719041577,-830.41,0.00023839,2]
[312260584,1705719041587,-199.08245444,0.000239,2]
[312260585,1705719041596,-155.48,0.00023906,2]
[312260586,1705719041605,-150.0,0.00023913,2]
[312260587,1705719041616,-154.18171626,0.0002394,10]
[312260588,1705719041627,-150.27,0.00023957,2]
[312260589,1705719041636,-152.29,0.0002396,2]
[312260590,1705719041646,-1078.2979,0.00024066,2]
[312260591,1705719041656,-1285.38,0.00024109,2]
[312260592,1705719041666,-500.0,0.0002411,2]
[312260593,1705719041675,-2519.6241123,0.00024165,2]
[312260594,1705719041693,-1489.47900001,0.00024165,2]
[312260595,1705719041703,-5506.7444118,0.00024165,2]
[312260596,1705719041911,-12916.91389952,0.00024165,2]
[312260597,1705719041921,-718.21,0.0002418,2]
[312260598,1705719041930,-250.0,0.000242,2]
[312260599,1705719041943,-152.29,0.00024216,2]
[312260600,1705719041953,-168.79,0.00024297,2]
[312260601,1705719041963,-523.34174153,0.00024309,2]
[312260602,1705719041972,-395.2794,0.0002431,2]
[312260603,1705719041982,-7636.8603,0.0002431,2]
[312260604,1705719041992,-1000.0,0.0002431,2]
[312260605,1705719042001,-150.27,0.00024348,2]
[312260606,1705719042010,-158.58,0.00024355,2]
[312260607,1705719042025,-1000.0,0.00024357,2]
[312260608,1705719042035,-160.89,0.00024376,2]
[312260609,1705719042044,-151.012,0.00024407,3]
[312260610,1705719042053,-151.012,0.00024407,3]
[312260611,1705719042062,-151.012,0.00024407,3]
[312260612,1705719042072,-151.012,0.00024407,3]
[312260613,1705719042081,-151.012,0.00024407,3]
[312260614,1705719042090,-151.012,0.00024407,3]
[312260615,1705719042100,-151.012,0.00024407,3]
[312260616,1705719042110,-151.012,0.00024407,3]
[312260617,1705719042119,-151.012,0.00024407,3]
[312260618,1705719042129,-151.012,0.00024407,3]
[312260619,1705719042138,-151.012,0.00024407,3]
[312260620,1705719042147,-151.012,0.00024407,3]
[312260621,1705719042157,-151.012,0.00024407,3]
[312260622,1705719042166,-151.012,0.00024407,3]
[312260623,1705719042175,-151.012,0.00024407,3]
[312260624,1705719042185,-151.012,0.00024407,3]
[312260625,1705719042194,-151.012,0.00024407,3]
[312260626,1705719042203,-151.012,0.00024407,3]
[312260627,1705719042213,-151.012,0.00024407,3]
[312260628,1705719042222,-151.012,0.00024407,3]
[312260629,1705719042232,-151.012,0.00024407,3]
[312260630,1705719042241,-151.012,0.00024407,3]
[312260631,1705719042250,-151.012,0.00024407,3]
[312260632,1705719042260,-151.012,0.00024407,3]
[312260633,1705719042269,-151.012,0.00024407,3]
[312260634,1705719042278,-151.012,0.00024407,3]
[312260635,1705719042287,-151.012,0.00024407,3]
[312260636,1705719042297,-151.012,0.00024407,3]
[312260637,1705719042306,-151.012,0.00024407,3]
[312260638,1705719042316,-151.012,0.00024407,3]
[312260639,1705719042325,-151.012,0.00024407,3]
[312260640,1705719042334,-151.012,0.00024407,3]
[312260641,1705719042344,-151.012,0.00024407,3]
[312260642,1705719042353,-151.012,0.00024407,3]
[312260643,1705719042362,-151.012,0.00024407,3]
[312260644,1705719042373,-151.012,0.00024407,3]
[312260645,1705719042383,-151.012,0.00024407,3]
[312260646,1705719042393,-151.012,0.00024407,3]
[312260647,1705719042402,-151.012,0.00024407,3]
[312260648,1705719042412,-151.012,0.00024407,3]
[312260649,1705719042651,-151.012,0.00024407,3]
[312260650,1705719042661,-151.012,0.00024407,3]
[312260651,1705719042670,-151.012,0.00024407,3]
[312260652,1705719042680,-151.012,0.00024407,3]
[312260653,1705719042689,-151.012,0.00024407,3]
[312260654,1705719042698,-151.012,0.00024407,3]
[312260655,1705719042708,-176.012,0.00024407,3]
[312260656,1705719042718,-327.25835994,0.00024408,2]
[312260657,1705719042728,-28016.0,0.0002441,2]
[312260658,1705719042739,-100000.0,0.00024457,2]
[312260659,1705719042748,-152.29,0.00024472,2]
[312260660,1705719042757,-176.58054267,0.00024543,2]
[312260662,1705719042766,-763.18709186,0.00024555,2]
[312260664,1705719042775,-14789.1868,0.00024557,2]
[312260666,1705719042784,-1000.0,0.00024557,2]
[312260668,1705719042793,-124523.0592936,0.00024557,2]
[312260670,1705719042806,-913.72473074,0.00024557,2]
[312260672,1705719042817,-372.03993255,0.00024557,2]
[312260677,1705719042849,-432.0,0.00024557,2]
[312260678,1705719042861,-702.38304042,0.00024557,2]
[312260679,1705719042872,-814.20859108,0.00024557,2]
[312260680,1705719042883,-113156.38871161,0.00024557,2]
[312260681,1705719042891,-152.911885,0.00024557,7]
[312260682,1705719042900,-2000.0,0.00024557,3]
[312260683,1705719042910,-467.255623,0.00024557,7]
[312260684,1705719042919,-467.255623,0.00024557,7]
[312260685,1705719042928,-5000.0,0.00024557,2]
[312260686,1705719042938,-151.0,0.00024557,7]
[312260687,1705719042947,-151.0,0.00024557,7]
[312260688,1705719042956,-55507.3158,0.00024557,2]
[312260689,1705719042967,-151.0,0.00024557,7]
[312260690,1705719042976,-188.20080063,0.00024557,2]
[312260691,1705719042986,-177.48,0.00024577,2]
[312260692,1705719042996,-2457.15,0.000246,2]
[312260693,1705719043005,-1000.0,0.00024625,3]
[312260694,1705719043016,-401.53408798,0.00024625,3]
[312260695,1705719043026,-158.58,0.00024637,2]
[312260696,1705719043035,-195.04292305,0.00024647,2]
[312260697,1705719043045,-151.012,0.00024648,3]
[312260698,1705719043054,-151.012,0.00024648,3]
[312260699,1705719043063,-151.012,0.00024648,3]
[312260700,1705719043073,-151.012,0.00024648,3]
[312260701,1705719043083,-151.012,0.00024648,3]
[312260702,1705719043093,-151.012,0.00024648,3]
[312260703,1705719043102,-151.012,0.00024648,3]
[312260704,1705719043112,-151.012,0.00024648,3]
[312260705,1705719043122,-151.012,0.00024648,3]
[312260706,1705719043131,-151.012,0.00024648,3]
[312260707,1705719043141,-151.012,0.00024648,3]
[312260708,1705719043151,-151.012,0.00024648,3]
[312260709,1705719043160,-151.012,0.00024648,3]
[312260710,1705719043170,-151.012,0.00024648,3]
[312260711,1705719043179,-151.012,0.00024648,3]
[312260712,1705719043189,-151.012,0.00024648,3]
[312260713,1705719043198,-151.012,0.00024648,3]
[312260714,1705719043209,-151.012,0.00024648,3]
[312260715,1705719043218,-151.012,0.00024648,3]
[312260716,1705719043228,-151.012,0.00024648,3]
[312260717,1705719043237,-151.012,0.00024648,3]
[312260718,1705719043247,-151.012,0.00024648,3]
[312260719,1705719043256,-151.012,0.00024648,3]
[312260720,1705719043266,-151.012,0.00024648,3]
[312260721,1705719043275,-151.012,0.00024648,3]
[312260722,1705719043285,-151.012,0.00024648,3]
[312260723,1705719043294,-151.012,0.00024648,3]
[312260724,1705719043303,-151.012,0.00024648,3]
[312260725,1705719043313,-151.012,0.00024648,3]
[312260726,1705719043322,-151.012,0.00024648,3]
[312260727,1705719043332,-151.012,0.00024648,3]
[312260728,1705719043342,-151.012,0.00024648,3]
[312260729,1705719043351,-151.012,0.00024648,3]
[312260730,1705719043361,-151.012,0.00024648,3]
[312260731,1705719043371,-151.012,0.00024648,3]
[312260732,1705719043380,-151.012,0.00024648,3]
[312260733,1705719043390,-151.012,0.00024648,3]
[312260734,1705719043400,-151.012,0.00024648,3]
[312260735,1705719043409,-151.012,0.00024648,3]
[312260736,1705719043419,-151.012,0.00024648,3]
[312260737,1705719043428,-151.012,0.00024648,3]
[312260738,1705719043437,-151.012,0.00024648,3]
[312260739,1705719043447,-151.012,0.00024648,3]
[312260740,1705719043457,-151.012,0.00024648,3]
[312260741,1705719043466,-151.012,0.00024648,3]
[312260742,1705719043475,-683.22398279,0.00024656,2]
[312260743,1705719043484,-458.12335253,0.00024656,2]
[312260744,1705719043494,-467.255623,0.00024657,7]
[312260745,1705719043503,-467.255623,0.00024657,7]
[312260746,1705719043513,-467.255623,0.00024657,7]
[312260747,1705719043522,-467.255623,0.00024657,7]
[312260748,1705719043531,-467.255623,0.00024657,7]
[312260749,1705719043540,-467.255623,0.00024657,7]
[312260750,1705719043550,-467.255623,0.00024657,7]
[312260751,1705719043559,-467.255623,0.00024657,7]
[312260752,1705719043568,-467.255623,0.00024657,7]
[312260753,1705719043577,-467.255623,0.00024657,7]
[312260754,1705719043587,-467.255623,0.00024657,7]
[312260755,1705719043596,-467.255623,0.00024657,7]